Cogmind - Beta 16 @@@ ROGUE MODE // 2025.10.23 @ 11:11:20 Player: Cmdr.Laserstrahl Result: Destroyed self with Missile Launcher Performance ------------- Evolutions (3) 1500 Regions Visited (4) 800 Robots Destroyed (120) 600 Value Destroyed (3363) 3363 Prototype IDs (5) 100 Alien Tech Used (0) 0 Bonus (13) 13 TOTAL SCORE: 6376 Bonus ------- High Alert Combat Kills 13 Cogmind --------- Core Integrity 0/700 Matter 256/300 Energy 85/100 System Corruption 4% Temperature Cool (0) Movement Core (1400) Ox27 Location -7/Factory Parts ------- > --- POWER (1) -------- (None) > --- PROPULSION (4) --- (None) > --- UTILITY (6) ------ Huge Storage Unit Targeting Computer > --- WEAPON (2) ------- Maul > --- INVENTORY (25) --- Cooled Ion Engine Improved Deuterium Engine Improved Heat Sink Improved Cooling System High-capacity Storage Unit Compact Battery (200) Compact Battery (200) Compact Matter Pod (150) Machine Analyzer Improved Sensor Array Improved Signal Interpreter Improved Terrain Scanner Improved Terrain Scan Processor Heavy Particle Cannon Heavy Particle Cannon Ion Cannon Ion Cannon Assault Cannon Mini Grenade Launcher Heavy Hammer Peak State ------------ > --- POWER ------------ Nuclear Core > --- PROPULSION ------- VSS Leg VSS Leg VSS Leg > --- UTILITY ---------- Huge Storage Unit Seismic Detector Targeting Computer Improved Targeting Computer Improved Light Armor Plating > --- WEAPON ----------- Ion Cannon Flak Cannon > --- INVENTORY -------- Cooled Ion Engine Wheel Armored Wheel Improved Heat Sink Improved Heat Sink High-capacity Storage Unit Compact Battery Compact Battery Compact Matter Pod Machine Analyzer Improved Sensor Array Improved Signal Interpreter Improved Terrain Scanner Improved Terrain Scan Processor Improved Light Armor Plating Shield Generator Shield Generator Heavy Particle Cannon Heavy Particle Cannon Ion Cannon Mini Grenade Launcher Missile Launcher Missile Launcher Maul Heavy Hammer [Rating: 32] Favorites ----------- Power Heavy Ion Engine Engine Heavy Ion Engine Power Core Nuclear Core Propulsion Wheel Treads Light Treads Leg VSS Leg Wheel Wheel Flight Unit Improved Flight Unit Utility Targeting Computer Device Seismic Detector Storage Huge Storage Unit Processor Targeting Computer Protection Improved Light Armor Plating Weapon Ion Cannon Energy Gun Small Laser Energy Cannon Ion Cannon Ballistic Gun Heavy Assault Rifle Ballistic Cannon Light Cannon Launcher Missile Launcher Impact Weapon Heavy Hammer Build | -11 -10 -9 -8 -7 ------- Run | Yrd Mat Mat Mat Fac Slots Evolved 6 | . . 2 2 2 Power . | . . . . . Propulsion 2 | . . . 1 1 Utility 4 | . . 2 1 1 Weapon . | . . . . . Parts Attached 78 | 7 3 37 20 11 Power 11 | . 1 7 1 2 Engine 8 | . 1 7 . . Core 3 | . . . 1 2 Reactor . | . . . . . Propulsion 27 | 2 . 16 7 2 Treads 1 | . . 1 . . Leg 4 | . . . 3 1 Wheel 20 | 2 . 13 4 1 Hover . | . . . . . Flight 2 | . . 2 . . Utility 20 | 2 1 6 7 4 Device 9 | 1 . 1 5 2 Storage 3 | 1 1 1 . . Processor 3 | . . 2 1 . Hackware . | . . . . . Protection 5 | . . 2 1 2 Artifact . | . . . . . Weapon 20 | 3 1 8 5 3 Energy Gun 4 | 2 . 2 . . Energy Cannon 5 | . . 3 2 . Ballistic Gun 2 | 1 . 1 . . Ballistic Cannon 4 | . 1 1 1 1 Launcher 2 | . . . 1 1 Special Weapon . | . . . . . Impact Weapon 3 | . . 1 1 1 Slashing Weapon . | . . . . . Piercing Weapon . | . . . . . Special Melee Weapon . | . . . . . Unidentified Prototypes 3 | . . 3 . . Parts Lost 27 | . . 6 2 19 Power 4 | . . 1 . 3 Propulsion 11 | . . 4 1 6 Utility 9 | . . 1 1 7 Weapon 3 | . . . . 3 Highest Loss Streak 10 | . . 2 1 10 To Critical Strikes . | . . . . . Average Backups 20 | 3 10 19 24 23 Power . | 1 1 . 1 1 Propulsion 2 | 1 4 2 1 1 Utility 10 | . 2 9 13 12 Weapon 7 | . 2 7 8 8 Tool/Special . | . . . . . Unused Backups 38 | . 1 13 10 14 Power 1 | . . . . 1 Propulsion 6 | . . 6 . . Utility 26 | . 1 5 9 11 Weapon 5 | . . 2 1 2 Tool/Special . | . . . . . Average Slot Usage (%) 97 | . 99 99 99 89 Engine 7 | . 13 11 6 . Core 2 | . . . 2 6 Wheel 22 | . 28 20 26 20 Device 7 | . 14 2 8 12 Storage 9 | . 14 11 9 7 Processor 17 | . . 21 18 15 Protection 7 | . . 8 8 7 Energy Gun 3 | . 14 6 . . Energy Cannon 5 | . . 4 8 6 Ballistic Gun 2 | . 12 3 . . Ballistic Cannon 7 | . 1 7 8 6 Peak Build Rating 32 | 6 8 18 32 31 Average Rating 20 | 4 7 14 24 29 On Entrance 11 | . 6 8 18 26 Avg Prop Armor Cover (%) 2 | . . 2 . . Naked Turns . | . . . . . Heaviest Build 106 | 8 30 102 106 104 Greatest Support 48 | 26 26 26 36 48 Greatest Overweight (x) 10 | 1 1 10 10 7 Average Overweight (x) 2 | . . 2 3 2 Largest Inventory Capacity 25 | 8 15 25 25 25 Average Capacity 22 | 7 13 21 25 25 Most Carried 25 | 8 15 25 25 25 Average Carried 20 | 4 10 19 24 23 Final Capacity 25 | 8 15 25 25 25 Final Carried 25 | 7 15 25 25 20 Class Distribution -------------------- 85% | Mutant 14% | Scavenger-Mutant Dominant Class ---------------- Mutant | -10/Materials Mutant | -9/Materials Mutant | -8/Materials Mutant | -7/Factory Resources | -11 -10 -9 -8 -7 ----------- Run | Yrd Mat Mat Mat Fac Matter Collected 2627 | 272 90 919 883 463 Remotely . | . . . . . Salvage Created 3993 | 128 290 1548 1400 627 Parts 237 | 10 14 97 85 31 Haulers Intercepted 7 | . 1 3 3 . Recyclers Shooed 8 | . . 6 1 1 Parts Field Recycled . | . . . . . Retrieved Matter . | . . . . . Parts Self-Destructed . | . . . . . Prevented . | . . . . . Parts Restored . | . . . . . Kills | -11 -10 -9 -8 -7 ------- Run | Yrd Mat Mat Mat Fac Combat Hostiles Destroyed 78 | . 3 27 26 22 Melee 1 | . . . . 1 Guns 17 | . 3 14 . . Cannons 51 | . . 13 24 14 AOE 8 | . . . 2 6 Classes Destroyed 15 | 2 3 5 3 2 Worker 8 | . . 3 5 . Builder 4 | . . 3 . 1 Tunneler 4 | 3 . 1 . . Hauler 7 | . 1 3 3 . Recycler 9 | 1 1 5 2 . Operator 1 | . . 1 . . Watcher 9 | . 2 2 4 1 Swarmer 19 | . . 8 4 7 Grunt 33 | . 3 11 9 10 Brawler 3 | . . . 2 1 Duelist 1 | . . . . 1 Sentry 16 | . . 8 8 . Specialist 2 | . . . 2 . Hunter 2 | . . . 1 1 Programmer 2 | . . . . 2 Best Kill Streak 12 | 4 2 6 12 4 Combat Bots Only 9 | . 2 4 9 4 Max Kills in Single Turn 2 | 1 1 1 2 2 Gunslinging . | . . . . . Exploded 2 | . . . 1 2 Melee 1 | . . . . 1 Uniques/NPCs Destroyed . | . . . . . Combat | -11 -10 -9 -8 -7 -------- Run | Yrd Mat Mat Mat Fac Hostile Shots Fired 491 | . 19 145 75 252 Missed 141 | . 7 41 22 71 Hits 350 | . 12 104 53 181 Projectile 350 | . 12 104 53 181 AOE 1 | . . . 1 . Critical Strikes 8 | . . 2 1 5 Damage Taken 4828 | . 132 1190 695 2811 Core 1089 | . 33 161 195 700 Absorbed by Shields 137 | . . . 55 82 Regen/Repaired (Parts) 214 | . . 175 39 . Core Remaining (%) 77 | 100 86 59 64 . Volleys Fired 305 | 8 37 120 89 51 Largest 2 | 2 2 2 2 2 Hottest 112 | 80 70 105 112 112 Shots Fired 578 | 16 74 230 162 96 Gun 222 | 16 73 133 . . Cannon 343 | . 1 97 159 86 Launcher 13 | . . . 3 10 Special . | . . . . . Kinetic 264 | 2 37 112 69 44 Thermal 289 | 8 31 118 90 42 Explosive 13 | . . . 3 10 Electromagnetic 12 | 6 6 . . . Robot Hit Streak 22 | 6 9 22 18 11 Robot Miss Streak 5 | 1 3 5 4 5 Penetration Max . | . . . . . Secondary Targets 2 | . 1 1 . . Max Gunslinging Chain 1 | . 1 1 . . Shots Hit Robots 395 | 13 43 156 107 76 Core Hits 218 | 5 14 62 71 66 Critical Kills 1 | . . . . 1 Critical Parts Destroyed . | . . . . . Critical Strikes 9 | . . 7 1 1 Burn 4 | . . 4 . . Meltdown 1 | . . . . 1 Blast 4 | . . 3 1 . Melee Attacks 26 | . . 2 5 19 Impact 26 | . . 2 5 19 Slashing . | . . . . . Piercing . | . . . . . Sneak Attacks . | . . . . . Combat Hostiles . | . . . . . Follow-up Attacks 2 | . . . . 2 Damage Inflicted 8679 | 154 417 2683 2554 2871 Guns 1987 | 154 400 1433 . . Cannons 4967 | . 17 1250 2373 1327 Explosions 1266 | . . . 181 1085 Melee 459 | . . . . 459 Ramming . | . . . . . Kinetic 3137 | 7 175 1250 996 709 Thermal 3700 | 79 193 1433 1377 618 Explosive 1266 | . . . 181 1085 Electromagnetic 117 | 68 49 . . . Impact 459 | . . . . 459 Slashing . | . . . . . Piercing . | . . . . . Highest Corruption 4 | . . . 3 4 Average Corruption 2 | . . . 2 2 Corruption Purged . | . . . . . Corruption Blocked . | . . . . . Effects 15 | . . . 15 . Message Errors 3 | . . . 3 . Matter Fused 3 | . . . 3 . Heat Flow Errors 1 | . . . 1 . Energy Discharges 2 | . . . 2 . Parts Fused 1 | . . . 1 . Data Loss (minor) 1 | . . . 1 . Misfires 2 | . . . 2 . Weapon Failures 2 | . . . 2 . Overload Shots . | . . . . . Overflow Damage 222 | . . 12 40 170 Projectiles 52 | . . 12 40 . Explosions 103 | . . . . 103 Melee 67 | . . . . 67 Knockbacks 52 | . . 12 15 25 Impact . | . . . . . Kinetic 49 | . . 11 15 23 Secondary 3 | . . 1 . 2 Self-Inflicted Damage 176 | . . . . 176 Shots 4 | . . . . 4 Rammed . | . . . . . Targets Rammed . | . . . . . Kicked . | . . . . . Crushed . | . . . . . Highest Temperature 351 | 10 88 192 351 36 Average Temperature 62 | 4 29 55 89 13 Received Heat Transfer 984 | . 72 387 240 285 Effects 5 | . . . 5 . Interference 3 | . . . 3 . Matter Decay 1 | . . . 1 . Damage (minor) 1 | . . . 1 . Siege Activations . | . . . . . Martial Activations . | . . . . . Shielding Activations . | . . . . . Robots Disrupted . | . . . . . Combat Hostiles . | . . . . . Robots Corrupted . | . . . . . Combat Hostiles . | . . . . . Parts Fried . | . . . . . Impact Corruptions 3 | . . . . 3 Robots Melted 1 | . . . . 1 Combat Hostiles 1 | . . . . 1 Parts Melted 6 | . . 3 2 1 Heat Transferred 7194 | 175 450 3424 2183 962 Parts Sabotaged . | . . . . . Parts Stolen . | . . . . . Parts Stripped . | . . . . . Power Chain Reactions . | . . . . . Alert | -11 -10 -9 -8 -7 ------- Run | Yrd Mat Mat Mat Fac Maximum Alert Level 2 | . . 1 2 1 Low Security (%) 54 | 100 100 53 20 83 Level 1 43 | . . 46 73 16 Level 2 1 | . . . 5 . Level 3 . | . . . . . Level 4 . | . . . . . Level 5 . | . . . . . High Security . | . . . . . Max Security . | . . . . . Peak Influence 417 | 10 43 278 417 246 Initial 132 | . . . 110 132 Average 165 | 2 14 172 240 121 Influence Increases 2521 | 20 139 853 862 647 Destroy 0b10 Robot/C 1560 | . 60 540 520 440 Destroy 0b10 Robot/NC 210 | 20 20 90 70 10 Destroy Leader 422 | . 16 160 154 92 Successful Hack 67 | . 43 11 13 . Disable Machine 120 | . . 45 45 30 Destroy Structure 112 | . . 7 45 60 Lose Combat Pursuer 30 | . . . 15 15 Influence Decreases 2318 | 20 139 590 833 736 Entered New Map 313 | . . . 153 160 Time Decay 1595 | 20 139 540 510 386 Lost Part 260 | . . 50 20 190 Purge Threat 150 | . . . 150 . Squads Dispatched 16 | . 1 3 5 7 Investigation 3 | . . 2 1 . Extermination 1 | . . . . 1 Reinforcement 8 | . 1 1 4 2 Assault . | . . . . . Garrison 4 | . . . . 4 Intercept . | . . . . . Searches Triggered . | . . . . . Construction Impeded 2 | . . . . 2 Haulers Reinforced . | . . . . . Active Scanning Responses . | . . . . . Cargo Convoy Interrupts 1 | . . . . 1 Stealth | -11 -10 -9 -8 -7 --------- Run | Yrd Mat Mat Mat Fac Distress Signals 6 | . . 2 2 2 Communications Jammed . | . . . . . Distress Signals . | . . . . . Times Spotted 117 | . 8 34 38 37 Peak Tracking Total 12 | . 2 4 5 12 Tactical Retreats 2 | . . . 1 1 Traps | -11 -10 -9 -8 -7 ------- Run | Yrd Mat Mat Mat Fac Traps Triggered 6 | . . 1 2 3 Indirectly . | . . . . . Trap Hack Attempts . | . . . . . Triggered . | . . . . . Disarmed . | . . . . . Reprogrammed . | . . . . . Reused . | . . . . . Traps Extracted . | . . . . . Installed . | . . . . . Triggered . | . . . . . Machines | -11 -10 -9 -8 -7 ---------- Run | Yrd Mat Mat Mat Fac Machines Disabled 8 | . . 3 3 2 Max in Single Turn 1 | . . 1 1 1 Machines Repaired . | . . . . . Machines Dismantled . | . . . . . Machines Sabotaged . | . . . . . Overloaded Fab Kills . | . . . . . Hacking | -11 -10 -9 -8 -7 --------- Run | Yrd Mat Mat Mat Fac Machines Accessed 27 | . 4 12 9 2 Terminals 19 | . 4 8 6 1 Fabricators 1 | . . . . 1 Repair Stations 2 | . . 1 1 . Recycling Units 1 | . . 1 . . Scanalyzers 4 | . . 2 2 . Garrison Access . | . . . . . Total Hacks 71 | . 8 34 24 5 Successful 49 | . 5 23 20 1 Failed 22 | . 3 11 4 4 Catastrophic 6 | . 1 3 1 1 Database Lockouts . | . . . . . Manual 32 | . 4 18 9 1 Terminals 42 | . 8 18 14 2 Fabricators 3 | . . . . 3 Repair Stations 4 | . . 2 2 . Recycling Units 2 | . . 2 . . Scanalyzers 20 | . . 12 8 . Garrison Access . | . . . . . Terminal Hacks 12 | . 2 3 6 1 Prototype ID Bank 1 | . . . 1 . Open DSF 1 | . . . . 1 Terminal Index 2 | . . 1 1 . Scanalyzer Index 3 | . 1 1 1 . Alert Level 1 | . . . 1 . Unreport Threat 1 | . . . 1 . Locate Traps 2 | . . 1 1 . Hauler Manifests 1 | . 1 . . . Fabricator Hacks . | . . . . . Repair Station Hacks 4 | . . 2 2 . Scan Component 2 | . . 1 1 . Repair 2 | . . 1 1 . Recycling Unit Hacks 1 | . . 1 . . Report Inventory 1 | . . 1 . . Scanalyzer 20 | . . 12 8 . Insert Component 9 | . . 5 4 . Analyze 9 | . . 5 4 . Retrieve Study 2 | . . 2 . . Garrison Access Hacks . | . . . . . Unauthorized Hacks 12 | . 3 5 4 . Terminals 12 | . 3 5 4 . Botnet 12 | . 3 5 4 . Fabricators . | . . . . . Repair Stations . | . . . . . Recycling Units . | . . . . . Scanalyzers . | . . . . . Garrison Access . | . . . . . Data Cores Recovered 1 | . . 1 . . Used . | . . . . . Hacking Detections 25 | . 4 11 8 2 Full Trace Events 2 | . . 1 1 . Feedback Events . | . . . . . Feedback Blocked . | . . . . . Robot Schematics Acquired . | . . . . . Robots Built . | . . . . . Authchips . | . . . . . Time . | . . . . . Total Robot Build Rating . | . . . . . Part Schematics Acquired 9 | . . 5 4 . Parts Built . | . . . . . Authchips . | . . . . . Time . | . . . . . Total Part Build Rating . | . . . . . Part Studies Acquired 1 | . . 1 . . Parts Repaired 2 | . . 1 1 . Time 58 | . . 32 26 . Parts Recycled . | . . . . . Recycled Matter . | . . . . . Retrieved Matter . | . . . . . Retrieved Components . | . . . . . Parts Scanalyzed 9 | . . 5 4 . Part Schematics Acquired 9 | . . 5 4 . Parts Damaged . | . . . . . Bothacking | -11 -10 -9 -8 -7 ------------ Run | Yrd Mat Mat Mat Fac Used RIF Installer . | . . . . . Robots Hacked . | . . . . . Non-combat . | . . . . . Combat . | . . . . . Robot Hacks Applied . | . . . . . Relay Couplers Released . | . . . . . Fabnet Peak Effective % . | . . . . . Robots Rewired . | . . . . . Allies Hacked . | . . . . . Hacks Repelled . | . . . . . Allies | -11 -10 -9 -8 -7 -------- Run | Yrd Mat Mat Mat Fac Total Allies . | . . . . . Largest Group . | . . . . . Highest-Rated Group . | . . . . . Highest-Rated Ally . | . . . . . Total Orders . | . . . . . Ally Attacks . | . . . . . Total Damage . | . . . . . Kills . | . . . . . Allies Corrupted . | . . . . . Allies Melted . | . . . . . Intel | -11 -10 -9 -8 -7 ------- Run | Yrd Mat Mat Mat Fac Active Infowar (turns) 2516 | 7 422 321 1034 732 Sensors 718 | . . 185 533 . Seismic 1798 | 7 422 136 501 732 Robot Analysis Total . | . . . . . Derelict Logs Recovered . | . . . . . Drone Launches . | . . . . . Drone Recoveries . | . . . . . Exploration | -11 -10 -9 -8 -7 ------------- Run | Yrd Mat Mat Mat Fac Turns Passed 4507 | 84 422 1694 1393 914 Spaces Moved 2513 | 46 286 915 775 491 Core 9 | 9 . . . . Treads . | . . . . . Legs 25 | . . . 4 21 Wheels 2475 | 37 286 911 771 470 Hover . | . . . . . Flight 4 | . . 4 . . Fastest Speed 50 | 50 90 95 116 117 Average Speed 124 | 83 99 126 127 132 Slowest Speed 810 | 100 105 787 810 720 Overloaded Moves . | . . . . . Propulsion Burnouts . | . . . . . Robots Hopped . | . . . . . Potential Cave-ins . | . . . . . Cave-ins Triggered . | . . . . . Exploration Rate (%) 43 | 3 52 75 70 16 Regions Visited 4 Branch Regions . Pre-discovered Areas . | . . . . . Known Exits Taken . | . . . . . Unknown Exits Taken 4 | 1 1 1 1 . Scrap Searched . | . . . . . Spaces Dug 14 | . . 6 8 . Terrain Destroyed 107 | . . 7 40 60 Melee 4 | . . 1 3 . Projectile 19 | . . 6 13 . AOE 84 | . . . 24 60 Terrain Rammed . | . . . . . Walls Destroyed . | . . . . . Machines Disabled . | . . . . . Actions | -11 -10 -9 -8 -7 --------- Run | Yrd Mat Mat Mat Fac Total 3287 | 75 356 1225 1014 617 Wait 150 | . 16 52 76 6 Move 2509 | 45 285 914 774 491 Hop . | . . . . . Pick Up 96 | 14 10 48 17 7 Fast Attach 19 | . 1 6 12 . Attach 32 | 6 1 10 4 11 Detach 1 | . . 1 . . Swap 52 | 1 3 28 11 9 Drop 75 | 1 3 44 26 1 Fire 305 | 8 37 120 89 51 Melee 24 | . . 2 5 17 Ram . | . . . . . Kick . | . . . . . Crush . | . . . . . Escape Stasis 24 | . . . . 24 Rewire . | . . . . . Trap . | . . . . . Miscellaneous . | . . . . . Route ------- -11/Scrapyard -10/Materials (discovered 3 exits: *Mat / [*Min x2]) -9/Materials (discovered 3 exits: *Mat / [*Min x2]) -8/Materials (discovered 2 exits: *Fac x2) -7/Factory History --------- Turn | Location | Event 28 | -11/Scrapyard | Discovered new exit (range 14) 85 | -11/Scrapyard | Entered Materials 146 | -10/Materials | Discovered new exit (range 13) 223 | -10/Materials | Discovered new exit (range 4) 315 | -10/Materials | Build established: Mutant 378 | -10/Materials | Discovered new exit (range 12) 507 | -10/Materials | Entered another Materials area 507 | -9/Materials | Evolved 2 slots: Utility x2 923 | -9/Materials | Discovered new exit (range 11) 1090 | -9/Materials | Build established: Scavenger-Mutant 1366 | -9/Materials | Discovered new exit (range 5) 1583 | -9/Materials | Repaired Hrd. Light Armor Plating 1788 | -9/Materials | Build established: Mutant 2177 | -9/Materials | Discovered new exit (range 8) 2201 | -9/Materials | Entered another Materials area 2201 | -8/Materials | Evolved 2 slots: Propulsion x1, Utility x1 2369 | -8/Materials | Repaired Lgt. Cannon+ 2530 | -8/Materials | Destroyed 9 combat bots 2548 | -8/Materials | Discovered new exit (range 8) 2755 | -8/Materials | Discovered new exit (range 16) 3594 | -8/Materials | Entered Factory 3594 | -7/Factory | Evolved 2 slots: Propulsion x1, Utility x1 4201 | -7/Factory | Garrison activated, responded to threat 4373 | -7/Factory | Lost 7 parts (1p3n2u1w) 4430 | -7/Factory | Cargo convoy interrupted 4486 | -7/Factory | Core integrity fell below 50% 4501 | -7/Factory | Core integrity fell below 20% 4502 | -7/Factory | Garrison activated, responded to threat 4508 | -7/Factory | Destroyed self with Missile Launcher Last Messages --------------- 04502_ P-60 Hacker calls for garrison reinforcements. 04502_ ALERT: Activating Garrison Access F001. 04502_ Imp. Targeting Computer destroyed. 04502_ Destroyed Imp. Targeting Computer. 04502_ Missile Launcher destroyed. [Achievement: Overwhelming] 04502_ Destroyed Missile Launcher. 04503_ Penetrated by Slug. 04503_ ALERT: Construction progress impeded, dispatching reinforcements to local area. 04505_ S-27 Virus destroyed. 04505_ Destroyed Assault Rifle. 04505_ U-05 Engineer destroyed. 04506_ Penetrated by Slug. 04506_ P-60 Hacker resets P-60 Hacker, system corruption cleaned. 04508_ Penetrated by Slug. 04508_ Missile Launcher destroyed. 04508_ Destroyed Missile Launcher. Map ----- +----------------------------------------------------+ | ?????????# #?????# #????? | | ?????????# #?????# #????? | | ????? """""" #?????# #????? | | ??????? """""" ####### #????? | | ???????? """""" #????? | | ??????????????"""""" #????? | | ??????????????"""""" #????? | | ??????????????"""""" #????? | | ??????????????"""""" #????? | | ????????? """""" #####!#????? | | ???????? """""" #####+####?? | | ??????? # % #?? | | ??????? ! # #?? | | ????????### ! # #?? | | ??????????# ! # ""##? | | ??????????# %# ] %="" #? | | ???????? ####+# # =] G##? | | ?????????### # + =+ =][% "" #? | | ???????????###?# # [# [ ""##? | | ???????????????# # # [ ##? | | ???????????????#?? +#######?? | | ???????????????# ? % [ ##?? | | ???????????????# # p ]]]#??? | | ????????????????? p ]]]#??? | | ????????????????????# ]]]#??? | | ????????????????????# h @ = #??? | | ???????????????????# p ! #??? | | ????????????????#####+## !########??? | | ????????????????# # ###????????? | | ????????????????# # # ##???????? | | ????????????????# =# # #######?? | | ????????????????# ! # # ! #? | | ????????????????# #!# #? | | ????????????????# = #[# """ =#? | | ????????????????##+## #%# """ #? | | ?????????????????# |=+ """ !* #? | | ?????????????????# # "" !* #? | | ?????????????????# # "" ** #? | | ?????????????????# ^"" #? | | ?????????????????# """ ######+###?? | | ?????????????????# "F # #?# #???? | | ?????????????????#= """ ### #???? | | ?????????????????# "" #???? | | ?????????????????# #???? | | ?????????????????# #???? | | ?????????????????# ### # ### #???? | | ?????????????????# ??###?###### #???? | | ?????????????????# ???????????# #???? | | ?????????????????# ?????####### #???? | | ?????????????????#??????# #???? | +----------------------------------------------------+ Best States ------------- Heat Dissipation 48 Energy Generation 14 Energy Capacity 280 Matter Stores 300 Matter Capacity 300 Sight Range 16 Robot Scan Range 15 Terrain Scan Density 10 Armor Coverage 300 Evasion (%) 42 Targeting Accuracy 11 Item Schematics ----------------- Hvy. Particle Cannon | -9/Materials | Scanalyzed Hrd. Light Armor Plating | -9/Materials | Scanalyzed Cld. Ion Engine | -9/Materials | Scanalyzed Missile Launcher | -9/Materials | Scanalyzed Hacking Suite | -9/Materials | Scanalyzed VSS Leg | -8/Materials | Scanalyzed Imp. Light Armor Plating | -8/Materials | Scanalyzed Imp. Heat Sink | -8/Materials | Scanalyzed Imp. Sensor Array | -8/Materials | Scanalyzed Robot Schematics ------------------ None Fabricated ------------ Nothing Repaired ---------- Hrd. Light Armor Plating | 2% | -9/Materials Lgt. Cannon | 67% | -8/Materials Studied --------- Lgt. Cannon | -9/Materials | Hacked Alien Tech Used ----------------- None Achievements -------------- Bumper Bots DATA ERROR: Steam Global Achievement% Heavy Suspicion Item+ Jackpot Organ Harvest Overwhelming There's More Where That Came From Challenges ------------ None Game ------ Seed DeepSixDeflector Manual? 0 Play Time 02:02:43 Cumulative 384.5 hours Start 2025.10.22 @ 21:57:15 End 2025.10.23 @ 11:11:20 Sessions 2 Manual Loads 0 Difficulty Rogue Special Mode None Game No. 147 Rogue 144 Adventurer 3 Explorer 0 Win Type - Total 0 Types 0/0/0/0/0/0/0/0/0/0 Lore% 26 Gallery% 50 Achievement% 24 Wizard Run 0 Options --------- Layout 2 ASCII 0 Keyboard 0 Movement Mouse Keybinds 0 Fullscreen 1 Font 24/Smallcaps Map View 50x44 Zoom Use 0% Tactical HUD 1 Map Filters NONE Filters NONE Steam 1 RUN: 22179aec-754a-4d37-a984-77f092d84fc2